fUSD/lending_fUSD_20260625
["ID","MTS","AMOUNT","RATE_DAILY","PERIOD"]
[426378996,1782336640000,-150.0,0.00022936,2]
[426379002,1782336640000,-3648.0,0.00022936,2]
[426379003,1782336640000,-4080.17909395,0.00022945,2]
[426379007,1782336640000,-297.89529666,0.00022986,4]
[426379006,1782336640000,-209.17418234,0.00022986,4]
[426379005,1782336640000,-884.55434748,0.0002297,2]
[426379009,1782336640000,-336.0,0.00023,2]
[426379013,1782336640000,-208.0,0.00023,2]
[426379015,1782336640000,-733.0,0.00023,2]
[426379011,1782336640000,-1152.0,0.00023,2]
[426379012,1782336640000,-1559.0,0.00023,2]
[426379010,1782336640000,-279.0,0.00023,2]
[426378957,1782336640000,-301.35188584,0.00022,2]
[426379001,1782336640000,-1229.0,0.00022936,2]
[426378989,1782336640000,-150.0,0.00022936,2]
[426379004,1782336640000,-519.0,0.00022966,2]
[426378990,1782336640000,-150.0,0.00022936,2]
[426378963,1782336640000,-162.0,0.00022,2]
[426378995,1782336640000,-150.0,0.00022936,2]
[426378964,1782336640000,-733.0,0.00022,2]
[426378962,1782336640000,-208.0,0.00022,2]
[426378966,1782336640000,-222.0,0.00022,2]
[426378965,1782336640000,-450.0,0.00022,2]
[426378970,1782336640000,-519.0,0.00022001,2]
[426378968,1782336640000,-1143.0,0.00022,2]
[426378969,1782336640000,-464.0,0.00022,2]
[426378971,1782336640000,-1614.0,0.00022091,2]
[426378967,1782336640000,-251.0,0.00022,2]
[426378974,1782336640000,-785.0,0.00022268,2]
[426378973,1782336640000,-4080.17909395,0.00022123,2]
[426378972,1782336640000,-760.68,0.000221,7]
[426378975,1782336640000,-603.402,0.00022288,7]
[426378987,1782336640000,-150.8301702,0.00022809,2]
[426378984,1782336640000,-760.68,0.000227,7]
[426378978,1782336640000,-457.97,0.00022466,2]
[426378983,1782336640000,-4080.17909395,0.00022671,2]
[426378980,1782336640000,-496.9438256,0.00022517,2]
[426378985,1782336640000,-533.91222002,0.0002271,2]
[426378982,1782336640000,-785.0,0.000226,2]
[426378977,1782336640000,-4080.17909395,0.00022397,2]
[426378979,1782336640000,-36214.97252655,0.000225,2]
[426378976,1782336640000,-6558.18550345,0.0002234,2]
[426378981,1782336640000,-1809.99444944,0.000226,2]
[426379054,1782336641000,-343.0,0.00024,2]
[426379051,1782336641000,-3600.0,0.00024,2]
[426379049,1782336641000,-11206.3367659,0.00024,2]
[426379052,1782336641000,-81743.93017638,0.00024,2]
[426379050,1782336641000,-176188.72349874,0.00024,2]
[426379046,1782336641000,-333.07007772,0.00023971,2]
[426379048,1782336641000,-1261.63952459,0.00024,2]
[426379056,1782336641000,-1152.0,0.00024,2]
[426379055,1782336641000,-296.0,0.00024,2]
[426379047,1782336641000,-129588.03085158,0.00024,2]
[426379057,1782336641000,-1559.0,0.00024,2]
[426379053,1782336641000,-200.0,0.00024,4]
[426379058,1782336641000,-208.0,0.00024,2]
[426379070,1782336641000,-174.12893452,0.00024029,2]
[426379068,1782336641000,-153.44906303,0.00024029,2]
[426379065,1782336641000,-464.0,0.00024,2]
[426379061,1782336641000,-500.0,0.00024,2]
[426379063,1782336641000,-251.0,0.00024,2]
[426379059,1782336641000,-162.0,0.00024,2]
[426379067,1782336641000,-357.99258747,0.00024029,2]
[426379060,1782336641000,-733.0,0.00024,2]
[426379064,1782336641000,-1143.0,0.00024,2]
[426379062,1782336641000,-222.0,0.00024,2]
[426379069,1782336641000,-176.66480873,0.00024029,2]
[426379075,1782336641000,-356.37369878,0.00024029,2]
[426379042,1782336641000,-160.35837558,0.00023944,2]
[426379066,1782336641000,-172.6134389,0.00024004,3]
[426379038,1782336641000,-7243.0,0.0002391,3]
[426379021,1782336641000,-217.8403167,0.00023081,3]
[426379034,1782336641000,-185.56603418,0.0002382,2]
[426379072,1782336641000,-168.67454358,0.00024029,2]
[426379016,1782336641000,-222.0,0.00023,2]
[426379018,1782336641000,-1143.0,0.00023,2]
[426379019,1782336641000,-464.0,0.00023,2]
[426379017,1782336641000,-251.0,0.00023,2]
[426379020,1782336641000,-173.0,0.00023,7]
[426379023,1782336641000,-463.36881858,0.000232,2]
[426379022,1782336641000,-2017.0,0.00023104,2]
[426379025,1782336641000,-150.0,0.0002326,21]
[426379026,1782336641000,-1768.8091859,0.00023444,2]
[426379024,1782336641000,-4080.17909395,0.00023219,2]
[426379027,1782336641000,-4080.17909395,0.00023493,2]
[426379040,1782336641000,-166.873193,0.00023944,2]
[426379031,1782336641000,-4080.17909395,0.00023767,2]
[426379028,1782336641000,-2209.52908923,0.000235,2]
[426379029,1782336641000,-195.2268778,0.00023542,3]
[426379030,1782336641000,-166.53503886,0.00023588,2]
[426379033,1782336641000,-181.43734009,0.00023811,2]
[426379035,1782336641000,-178.88473179,0.0002382,2]
[426379043,1782336641000,-200.24346474,0.00023944,2]
[426379039,1782336641000,-513.2286242,0.00023931,2]
[426379036,1782336641000,-187.33516872,0.00023834,2]
[426379044,1782336641000,-156.73213535,0.00023944,2]
[426379037,1782336641000,-4200.0,0.000239,8]
[426379045,1782336641000,-640.78,0.00023968,2]
[426379041,1782336641000,-157.64258691,0.00023944,2]
[426379032,1782336641000,-760.68,0.000238,7]
[426379073,1782336641000,-197.96818729,0.00024029,2]
[426379093,1782336641000,-184.86891968,0.00024033,2]
[426379074,1782336641000,-338.84995423,0.00024029,2]
[426379110,1782336641000,-1543.15890746,0.00024544,2]
[426379115,1782336641000,-160.0,0.00024657,2]
[426379112,1782336641000,-1543.15890746,0.00024586,2]
[426379114,1782336641000,-1543.15890746,0.00024628,2]
[426379116,1782336641000,-160.63,0.00024658,8]
[426379107,1782336641000,-4080.17909395,0.00024315,2]
[426379113,1782336641000,-4080.17909395,0.00024589,2]
[426379109,1782336641000,-1543.15890746,0.00024502,2]
[426379111,1782336641000,-236.425482,0.00024582,2]
[426379106,1782336641000,-2000.0,0.00024267,7]
[426379118,1782336641000,-1180.28,0.00024658,2]
[426379128,1782336641000,-1543.15890746,0.00024838,7]
[426379108,1782336641000,-1543.15890746,0.0002446,2]
[426379126,1782336641000,-1543.15890746,0.00024796,7]
[426379129,1782336641000,-4080.1790941,0.00024863,2]
[426379119,1782336641000,-828.8,0.00024658,2]
[426379124,1782336641000,-943.590983,0.00024712,7]
[426379120,1782336641000,-812.1,0.00024658,2]
[426379121,1782336641000,-696.14,0.00024658,2]
[426379123,1782336641000,-1543.15890746,0.00024712,2]
[426379122,1782336641000,-1543.15890746,0.0002467,2]
[426379125,1782336641000,-1543.15890746,0.00024754,7]
[426379130,1782336641000,-4000.0,0.00024874,7]
[426379133,1782336641000,-217.13566861,0.00024927,2]
[426379131,1782336641000,-1543.15890746,0.0002488,7]
[426379071,1782336641000,-386.0908466,0.00024029,2]
[426379117,1782336641000,-1000.0,0.00024658,2]
[426379105,1782336641000,-415.0,0.00024124,2]
[426379127,1782336641000,-662.85223608,0.00024803,2]
[426379100,1782336641000,-161.72230043,0.00024033,2]
[426379076,1782336641000,-175.88024011,0.00024029,2]
[426379097,1782336641000,-271.09877866,0.00024033,2]
[426379079,1782336641000,-219.22180877,0.00024029,2]
[426379078,1782336641000,-168.87240213,0.00024029,2]
[426379080,1782336641000,-161.09596955,0.00024029,2]
[426379083,1782336641000,-161.15827872,0.00024029,2]
[426379082,1782336641000,-160.83357394,0.00024029,2]
[426379081,1782336641000,-157.69017171,0.00024029,2]
[426379091,1782336641000,-157.01620755,0.00024033,2]
[426379085,1782336641000,-198.00488487,0.00024029,2]
[426379086,1782336641000,-165.31826211,0.00024029,2]
[426379089,1782336641000,-169.0713565,0.00024029,2]
[426379090,1782336641000,-6558.18550345,0.00024033,2]
[426379088,1782336641000,-172.69386149,0.00024029,2]
[426379077,1782336641000,-181.54933239,0.00024029,2]
[426379087,1782336641000,-166.20704813,0.00024029,2]
[426379084,1782336641000,-173.83026463,0.00024029,2]
[426379101,1782336641000,-187.74714771,0.00024033,2]
[426379098,1782336641000,-250.19210757,0.00024033,2]
[426379095,1782336641000,-157.82083434,0.00024033,2]
[426379102,1782336641000,-4080.17909395,0.00024041,2]
[426379096,1782336641000,-216.66441778,0.00024033,2]
[426379099,1782336641000,-209.07957765,0.00024033,2]
[426379094,1782336641000,-161.64875596,0.00024033,2]
[426379104,1782336641000,-2017.0,0.00024118,2]
[426379103,1782336641000,-400.72,0.0002411,2]
[426379132,1782336641000,-1543.15890746,0.00024922,7]
[426379092,1782336641000,-163.74267248,0.00024033,2]
[426379159,1782336642000,-500.0,0.00016438,2]
[426379163,1782336642000,-500.0,0.00016438,2]
[426379165,1782336642000,-500.0,0.00016438,2]
[426379171,1782336642000,-500.0,0.00016438,2]
[426379169,1782336642000,-500.0,0.00016438,2]
[426379170,1782336642000,-500.0,0.00016438,2]
[426379167,1782336642000,-500.0,0.00016438,2]
[426379168,1782336642000,-500.0,0.00016438,2]
[426379164,1782336642000,-500.0,0.00016438,2]
[426379156,1782336642000,-500.0,0.00016438,2]
[426379166,1782336642000,-500.0,0.00016438,2]
[426379161,1782336642000,-500.0,0.00016438,2]
[426379162,1782336642000,-500.0,0.00016438,2]
[426379158,1782336642000,-500.0,0.00016438,2]
[426379154,1782336642000,-500.0,0.00016438,2]
[426379153,1782336642000,-500.0,0.00016438,2]
[426379148,1782336642000,-500.0,0.00016438,2]
[426379150,1782336642000,-500.0,0.00016438,2]
[426379146,1782336642000,-500.0,0.00016438,2]
[426379144,1782336642000,-500.0,0.00016438,2]
[426379136,1782336642000,-89168.39223466,0.00025,5]
[426379137,1782336642000,-489.23389195,0.00025,5]
[426379135,1782336642000,-333.07007772,0.00024981,14]
[426379134,1782336642000,-1543.15890746,0.00024964,7]
[426379174,1782336642000,-450.0,0.00016438,2]
[426379160,1782336642000,-500.0,0.00016438,2]
[426379173,1782336642000,-500.0,0.00016438,2]
[426379177,1782336642000,-500.0,0.00016438,2]
[426379176,1782336642000,-500.0,0.00016438,2]
[426379172,1782336642000,-500.0,0.00016438,2]
[426379202,1782336642000,-374.67033744,0.00025098,2]
[426379201,1782336642000,-1543.15890746,0.0002509,7]
[426379199,1782336642000,-371.13206836,0.00025084,2]
[426379197,1782336642000,-362.87468017,0.00025075,2]
[426379196,1782336642000,-1543.15890746,0.00025048,7]
[426379198,1782336642000,-217.13566861,0.00025076,2]
[426379195,1782336642000,-812.1,0.00025018,7]
[426379190,1782336642000,-255.0,0.00025,2]
[426379192,1782336642000,-471.0,0.00025,2]
[426379188,1782336642000,-736.0,0.00025,2]
[426379193,1782336642000,-433.97,0.00025,14]
[426379194,1782336642000,-1543.15890746,0.00025006,7]
[426379200,1782336642000,-357.76946359,0.00025084,2]
[426379189,1782336642000,-240.0,0.00025,2]
[426379175,1782336642000,-500.0,0.00016438,2]
[426379191,1782336642000,-1144.96056568,0.00025,2]
[426379178,1782336642000,-171.82853242,0.00019,2]
[426379181,1782336642000,-1405.13723769,0.00025,21]
[426379185,1782336642000,-1566.0,0.00025,2]
[426379179,1782336642000,-19143.1659853,0.00025,5]
[426379184,1782336642000,-1155.0,0.00025,2]
[426379180,1782336642000,-1000.0,0.00025,2]
[426379183,1782336642000,-303.80614834,0.00025,4]
[426379187,1782336642000,-174.0,0.00025,2]
[426379182,1782336642000,-17054.15057065,0.00025,2]
[426379186,1782336642000,-227.0,0.00025,2]
[426379227,1782336643000,-348.25786904,0.000253,2]
[426379228,1782336643000,-195.52122306,0.000253,2]
[426379237,1782336643000,-363.09866478,0.000253,2]
[426379226,1782336643000,-198.0724564,0.000253,2]
[426379231,1782336643000,-337.34908717,0.000253,2]
[426379230,1782336643000,-772.18169321,0.000253,2]
[426379229,1782336643000,-232.1365212,0.000253,2]
[426379232,1782336643000,-395.93637457,0.000253,2]
[426379233,1782336643000,-677.69990845,0.000253,2]
[426379240,1782336643000,-337.74480426,0.000253,2]
[426379236,1782336643000,-351.76048023,0.000253,2]
[426379238,1782336643000,-176.92258503,0.000253,2]
[426379241,1782336643000,-438.44361754,0.000253,2]
[426379242,1782336643000,-322.19193911,0.000253,2]
[426379239,1782336643000,-222.32320686,0.000253,2]
[426379246,1782336643000,-321.66714788,0.000253,2]
[426379245,1782336643000,-236.33487456,0.000253,2]
[426379223,1782336643000,-231.84222406,0.000253,2]
[426379244,1782336643000,-187.44615277,0.000253,2]
[426379247,1782336643000,-322.31655744,0.000253,2]
[426379225,1782336643000,-235.09113957,0.000253,2]
[426379213,1782336643000,-1543.15890746,0.00025216,7]
[426379224,1782336643000,-353.32961746,0.000253,2]
[426379243,1782336643000,-315.38034341,0.000253,2]
[426379210,1782336643000,-320.71675115,0.00025213,2]
[426379203,1782336643000,-5794.0,0.00025116,3]
[426379204,1782336643000,-1543.15890746,0.00025132,7]
[426379206,1782336643000,-164.90866995,0.000252,2]
[426379208,1782336643000,-217.08768591,0.00025213,2]
[426379207,1782336643000,-333.746386,0.00025213,2]
[426379209,1782336643000,-315.28517381,0.00025213,2]
[426379205,1782336643000,-1543.15890746,0.00025174,7]
[426379211,1782336643000,-400.48692948,0.00025213,2]
[426379212,1782336643000,-313.46427069,0.00025213,2]
[426379215,1782336643000,-217.13566861,0.00025226,7]
[426379220,1782336643000,-190.57080928,0.000253,2]
[426379217,1782336643000,-153.4596889,0.000253,2]
[426379216,1782336643000,-1543.15890746,0.00025258,14]
[426379222,1782336643000,-179.71191314,0.000253,2]
[426379214,1782336643000,-640.78,0.00025223,2]
[426379221,1782336643000,-306.89812605,0.000253,2]
[426379218,1782336643000,-715.98517494,0.000253,2]
[426379219,1782336643000,-152.81071988,0.000253,2]
[426379234,1782336643000,-712.74739755,0.000253,2]
[426379235,1782336643000,-172.48611029,0.000253,2]
[426379249,1782336643000,-396.00976975,0.000253,2]
[426379265,1782336643000,-500.38421513,0.00025305,2]
[426379250,1782336643000,-330.63652422,0.000253,2]
[426379285,1782336643000,-1543.15890746,0.00025511,14]
[426379279,1782336643000,-161.31156487,0.00025397,2]
[426379282,1782336643000,-1543.15890746,0.00025426,14]
[426379283,1782336643000,-1543.15890746,0.00025469,14]
[426379284,1782336643000,-6719.66259974,0.000255,2]
[426379290,1782336643000,-1543.15890746,0.00025637,14]
[426379288,1782336643000,-1543.15890746,0.00025595,14]
[426379291,1782336643000,-200.0,0.00025637,2]
[426379287,1782336643000,-1543.15890746,0.00025553,14]
[426379278,1782336643000,-1543.15890746,0.00025384,14]
[426379289,1782336643000,-760.68,0.000256,7]
[426379292,1782336643000,-161.6,0.00025675,7]
[426379294,1782336643000,-1543.15890746,0.00025679,14]
[426379293,1782336643000,-217.13566861,0.00025676,7]
[426379295,1782336643000,-1543.15890746,0.00025721,14]
[426379298,1782336643000,-319734.01988828,0.000258,2]
[426379297,1782336643000,-313.65409922,0.0002579,2]
[426379300,1782336643000,-60967.89027464,0.000258,2]
[426379301,1782336643000,-3000.0,0.000258,2]
[426379248,1782336643000,-347.66052927,0.000253,2]
[426379296,1782336643000,-6558.18550345,0.00025726,2]
[426379281,1782336643000,-255.76935194,0.00025397,2]
[426379286,1782336643000,-217.13566861,0.00025526,7]
[426379277,1782336643000,-217.13566861,0.00025376,7]
[426379252,1782336643000,-338.14271299,0.000253,2]
[426379251,1782336643000,-332.41409625,0.000253,2]
[426379253,1782336643000,-1543.15890746,0.000253,14]
[426379280,1782336643000,-273.61755624,0.00025397,2]
[426379254,1782336643000,-314.03241509,0.00025305,2]
[426379255,1782336643000,-327.48534497,0.00025305,2]
[426379257,1782336643000,-323.29751192,0.00025305,2]
[426379256,1782336643000,-369.73783935,0.00025305,2]
[426379264,1782336643000,-242.21827843,0.00025305,2]
[426379260,1782336643000,-154.42312738,0.00025305,2]
[426379258,1782336643000,-315.64166868,0.00025305,2]
[426379274,1782336643000,-1614.0,0.00025334,2]
[426379270,1782336643000,-1784.63,0.00025315,2]
[426379272,1782336643000,-1755.79285176,0.00025333,7]
[426379269,1782336643000,-375.49429542,0.00025305,2]
[426379261,1782336643000,-433.32883557,0.00025305,2]
[426379267,1782336643000,-418.1591553,0.00025305,2]
[426379268,1782336643000,-323.44460087,0.00025305,2]
[426379276,1782336643000,-1543.15890746,0.00025342,14]
[426379263,1782336643000,-542.19755732,0.00025305,2]
[426379275,1782336643000,-696.14,0.00025334,7]
[426379332,1782336696000,-246.65363516,0.00025965,2]
[426379322,1782336696000,-150.0,0.00025936,2]
[426379320,1782336696000,-150.0,0.00025936,2]
[426379318,1782336696000,-173.8398943,0.00025933,2]
[426379319,1782336696000,-150.0,0.00025936,2]
[426379317,1782336696000,-536.65419538,0.00025927,2]
[426379312,1782336696000,-2000.0,0.0002584,7]
[426379314,1782336696000,-508.40408379,0.00025924,2]
[426379311,1782336696000,-217.13566861,0.00025826,14]
[426379313,1782336696000,-278.8,0.000259,2]
[426379309,1782336696000,-528.47,0.0002411,2]
[426379308,1782336696000,-603.97,0.00022466,2]
[426379310,1782336696000,-505045.21106656,0.000258,2]
[426379321,1782336696000,-150.0,0.00025936,2]
[426379315,1782336696000,-358.56971393,0.00025927,2]
[426379333,1782336696000,-241.92792345,0.00025966,2]
[426379316,1782336696000,-556.69810254,0.00025927,2]
[426379323,1782336696000,-150.0,0.00025936,2]
[426379324,1782336696000,-150.0,0.00025936,2]
[426379341,1782336696000,-138203.94677517,0.00026,5]
[426379338,1782336696000,-1135.76965981,0.00026,2]
[426379339,1782336696000,-4614.05795603,0.00026,2]
[426379342,1782336696000,-151.0,0.00026,2]
[426379337,1782336696000,-5803.93402009,0.00026,2]
[426379336,1782336696000,-1201.82860802,0.00026,2]
[426379335,1782336696000,-613.02367705,0.0002599,2]
[426379340,1782336696000,-220.7950377,0.00026,2]
[426379325,1782336696000,-150.0,0.00025936,2]
[426379326,1782336696000,-1361.0,0.00025936,2]
[426379329,1782336696000,-1229.0,0.00025936,2]
[426379331,1782336696000,-562.00550616,0.00025941,2]
[426379330,1782336696000,-3648.0,0.00025936,2]
[426379328,1782336696000,-383.0,0.00025936,2]
[426379334,1782336696000,-217.13566861,0.00025976,14]
[426379327,1782336696000,-1277.0,0.00025936,2]
[426379388,1782336697000,-150.9802713,0.00026148,2]
[426379390,1782336697000,-344.97222057,0.00026148,2]
[426379379,1782336697000,-464.2730424,0.00026148,2]
[426379380,1782336697000,-1158.27253981,0.00026148,2]
[426379370,1782336697000,-270.52103151,0.00026148,2]
[426379373,1782336697000,-229.08085312,0.00026148,2]
[426379371,1782336697000,-463.68444812,0.00026148,2]
[426379375,1782336697000,-470.18227914,0.00026148,2]
[426379368,1782336697000,-276.43712422,0.00026148,2]
[426379381,1782336697000,-201.52303864,0.00026148,2]
[426379372,1782336697000,-529.99442619,0.00026148,2]
[426379385,1782336697000,-259.10203818,0.00026148,2]
[426379396,1782336697000,-353.84517006,0.00026148,2]
[426379383,1782336697000,-470.44209584,0.00026148,2]
[426379382,1782336697000,-506.02363075,0.00026148,2]
[426379386,1782336697000,-218.69960363,0.00026148,2]
[426379389,1782336697000,-1069.12109633,0.00026148,2]
[426379384,1782336697000,-593.90456186,0.00026148,2]
[426379392,1782336697000,-246.73899806,0.00026148,2]
[426379397,1782336697000,-444.64641372,0.00026148,2]
[426379378,1782336697000,-391.04244612,0.00026148,2]
[426379398,1782336697000,-506.61720639,0.00026148,2]
[426379394,1782336697000,-544.64799717,0.00026148,2]
[426379400,1782336697000,-483.28790866,0.00026148,2]
[426379401,1782336697000,-473.07051512,0.00026148,2]
[426379399,1782336697000,-657.66542631,0.00026148,2]
[426379391,1782336697000,-166.38514989,0.00026148,2]
[426379377,1782336697000,-522.38680355,0.00026148,2]
[426379360,1782336697000,-217.13566861,0.00026126,14]
[426379374,1782336697000,-156.00813318,0.00026148,2]
[426379395,1782336697000,-218.43869251,0.00026148,2]
[426379345,1782336697000,-550.0,0.00026,2]
[426379346,1782336697000,-311.0,0.00026054,2]
[426379343,1782336697000,-151.0,0.00026,2]
[426379344,1782336697000,-27859.01517237,0.00026,2]
[426379348,1782336697000,-434.17537182,0.00026058,2]
[426379347,1782336697000,-500.61957901,0.00026058,2]
[426379349,1782336697000,-472.92776072,0.00026058,2]
[426379350,1782336697000,-481.07512673,0.00026058,2]
[426379351,1782336697000,-600.73039422,0.00026058,2]
[426379353,1782336697000,-394.6746769,0.00026072,2]
[426379352,1782336697000,-470.19640604,0.00026058,2]
[426379369,1782336697000,-299.99713091,0.00026148,2]
[426379363,1782336697000,-306.91937779,0.00026148,2]
[426379364,1782336697000,-305.62143976,0.00026148,2]
[426379354,1782336697000,-248.0,0.000261,2]
[426379356,1782336697000,-2523.79189208,0.000261,2]
[426379365,1782336697000,-163.85994446,0.00026148,2]
[426379357,1782336697000,-25232.0,0.000261,2]
[426379359,1782336697000,-1577.0,0.000261,2]
[426379358,1782336697000,-2208.0,0.000261,2]
[426379362,1782336697000,-191.60656662,0.00026148,2]
[426379361,1782336697000,-474.53064699,0.00026148,2]
[426379366,1782336697000,-460.34718908,0.00026148,2]
[426379367,1782336697000,-359.42382628,0.00026148,2]
[426379376,1782336697000,-396.14491281,0.00026148,2]
[426379355,1782336697000,-278.0,0.000261,2]
[426379403,1782336697000,-153.17121786,0.00026148,2]
[426379387,1782336697000,-1016.54986268,0.00026148,2]
[426379402,1782336697000,-472.66974912,0.00026148,2]
[426379430,1782336697000,-473.46250302,0.00026153,2]
[426379437,1782336697000,-627.23873294,0.00026153,2]
[426379431,1782336697000,-308.84625476,0.00026153,2]
[426379432,1782336697000,-649.99325335,0.00026153,2]
[426379441,1782336697000,-152.0,0.00026214,3]
[426379440,1782336697000,-374.89230553,0.00026153,2]
[426379438,1782336697000,-485.1669013,0.00026153,2]
[426379436,1782336697000,-160.30893027,0.00026153,2]
[426379448,1782336697000,-10477.7937,0.00026323,2]
[426379447,1782336697000,-10477.7937,0.00026323,2]
[426379451,1782336697000,-161.31156487,0.00026397,2]
[426379453,1782336697000,-349.76214414,0.00026397,2]
[426379443,1782336697000,-27859.01517237,0.00026222,2]
[426379442,1782336697000,-300.0,0.00026221,10]
[426379452,1782336697000,-273.61755624,0.00026397,2]
[426379450,1782336697000,-200.0,0.00026387,2]
[426379446,1782336697000,-5987.3107,0.00026323,2]
[426379444,1782336697000,-496.9438256,0.00026268,2]
[426379449,1782336697000,-286.86,0.0002636,2]
[426379454,1782336697000,-255.76935194,0.00026397,2]
[426379456,1782336697000,-226.8456052,0.00026397,2]
[426379460,1782336697000,-27859.01517237,0.00026444,2]
[426379459,1782336697000,-308.10051478,0.00026443,10]
[426379458,1782336697000,-20201.26701039,0.000264,2]
[426379457,1782336697000,-300.0,0.00026399,10]
[426379461,1782336697000,-640.78,0.00026478,2]
[426379393,1782336697000,-527.64072034,0.00026148,2]
[426379435,1782336697000,-750.5763227,0.00026153,2]
[426379439,1782336697000,-563.24144312,0.00026153,2]
[426379445,1782336697000,-300.0,0.00026322,10]
[426379434,1782336697000,-484.43655686,0.00026153,2]
[426379433,1782336697000,-813.29633598,0.00026153,2]
[426379405,1782336697000,-163.07607667,0.00026148,2]
[426379407,1782336697000,-483.47483616,0.00026148,2]
[426379406,1782336697000,-482.50072183,0.00026148,2]
[426379409,1782336697000,-521.4907939,0.00026148,2]
[426379408,1782336697000,-594.01465462,0.00026148,2]
[426379416,1782336697000,-264.14550842,0.00026148,2]
[426379410,1782336697000,-495.95478633,0.00026148,2]
[426379413,1782336697000,-204.62710229,0.00026148,2]
[426379415,1782336697000,-507.21406949,0.00026148,2]
[426379414,1782336697000,-299.73370675,0.00026148,2]
[426379411,1782336697000,-498.62114438,0.00026148,2]
[426379412,1782336697000,-373.3125505,0.00026148,2]
[426379418,1782336697000,-151.0,0.00026148,2]
[426379404,1782336697000,-159.81390425,0.00026148,2]
[426379425,1782336697000,-491.22801745,0.00026153,2]
[426379429,1782336697000,-381.14161857,0.00026153,2]
[426379419,1782336697000,-500.0,0.00026148,2]
[426379420,1782336697000,-500.0,0.00026148,2]
[426379455,1782336697000,-369.1980672,0.00026397,2]
[426379417,1782336697000,-151.0,0.00026148,2]
[426379421,1782336697000,-500.0,0.00026148,2]
[426379422,1782336697000,-500.0,0.00026148,2]
[426379426,1782336697000,-554.60675903,0.00026153,2]
[426379428,1782336697000,-1073.97776241,0.00026153,2]
[426379424,1782336697000,-438.64789225,0.00026153,2]
[426379427,1782336697000,-484.94626788,0.00026153,2]
[426379423,1782336697000,-471.04862264,0.00026153,2]
[426379500,1782336698000,-165.2140893,0.00026713,2]
[426379504,1782336698000,-552.87424845,0.00026713,2]
[426379493,1782336698000,-5365.5,0.00026705,2]
[426379506,1782336698000,-432.44060216,0.00026713,2]
[426379508,1782336698000,-312.01626636,0.00026713,2]
[426379497,1782336698000,-383.21313324,0.00026713,2]
[426379501,1782336698000,-161.28498242,0.00026713,2]
[426379495,1782336698000,-166.32546132,0.00026713,2]
[426379498,1782336698000,-444.68071927,0.00026713,2]
[426379496,1782336698000,-237.26532349,0.00026713,2]
[426379499,1782336698000,-169.08960249,0.00026713,2]
[426379505,1782336698000,-706.65923492,0.00026713,2]
[426379494,1782336698000,-168.71523205,0.00026713,2]
[426379512,1782336698000,-403.04607728,0.00026713,2]
[426379509,1782336698000,-374.52842688,0.00026713,2]
[426379514,1782336698000,-169.66290735,0.00026713,2]
[426379513,1782336698000,-161.5345467,0.00026713,2]
[426379507,1782336698000,-169.63899475,0.00026713,2]
[426379511,1782336698000,-1544.36338642,0.00026713,2]
[426379510,1782336698000,-696.51573807,0.00026713,2]
[426379516,1782336698000,-235.22104792,0.00026713,2]
[426379527,1782336698000,-703.52096046,0.00026713,2]
[426379526,1782336698000,-434.05963275,0.00026713,2]
[426379515,1782336698000,-386.38640266,0.00026713,2]
[426379517,1782336698000,-331.36690827,0.00026713,2]
[426379518,1782336698000,-151.62305406,0.00026713,2]
[426379519,1782336698000,-402.91159028,0.00026713,2]
[426379503,1782336698000,-613.79625211,0.00026713,2]
[426379491,1782336698000,-1787.38,0.00026685,2]
[426379462,1782336698000,-677.87211172,0.00026486,2]
[426379492,1782336698000,-285.74961015,0.000267,2]
[426379520,1782336698000,-518.20407636,0.00026713,2]
[426379463,1782336698000,-537.8545709,0.00026488,2]
[426379464,1782336698000,-742.26413672,0.00026488,2]
[426379465,1782336698000,-715.53892718,0.00026488,2]
[426379468,1782336698000,-749.34067487,0.00026503,2]